fUSD/lending_fUSD_20250205
["ID","MTS","AMOUNT","RATE_DAILY","PERIOD"]
[351741891,1738773040770,-507.21306044,9.929e-05,2]
[351741894,1738773040780,-500.0,9.929e-05,2]
[351741895,1738773040793,-500.0,9.929e-05,2]
[351741898,1738773040804,-500.0,9.929e-05,2]
[351741899,1738773040813,-500.0,9.929e-05,2]
[351741902,1738773040825,-500.0,9.929e-05,2]
[351741904,1738773040835,-500.0,9.929e-05,2]
[351741906,1738773040844,-500.0,9.929e-05,2]
[351741908,1738773040854,-500.0,9.929e-05,2]
[351741909,1738773040863,-500.0,9.929e-05,2]
[351741912,1738773040873,-310.05349287,9.929e-05,2]
[351741913,1738773040883,-503.16611841,9.929e-05,2]
[351741915,1738773040893,-500.0,9.929e-05,2]
[351741917,1738773040902,-161.168308,9.929e-05,2]
[351741919,1738773040912,-500.76522693,9.929e-05,2]
[351741921,1738773040921,-500.0,9.929e-05,2]
[351741923,1738773040932,-547.79,9.929e-05,2]
[351741925,1738773040941,-500.0,9.929e-05,2]
[351741927,1738773040950,-500.0,9.929e-05,2]
[351741929,1738773040960,-500.0,9.929e-05,2]
[351741931,1738773040969,-500.0,9.929e-05,2]
[351741933,1738773040979,-500.0,9.929e-05,2]
[351741935,1738773040989,-500.0,9.929e-05,2]
[351741937,1738773040999,-500.0,9.929e-05,2]
[351741939,1738773041011,-500.0,9.929e-05,2]
[351741941,1738773041021,-500.0,9.929e-05,2]
[351741943,1738773041031,-500.0,9.929e-05,2]
[351741945,1738773041041,-500.0,9.929e-05,2]
[351741947,1738773041050,-500.0,9.929e-05,2]
[351741949,1738773041060,-500.0,9.929e-05,2]
[351741951,1738773041071,-500.0,9.929e-05,2]
[351741953,1738773041082,-500.0,9.929e-05,2]
[351741955,1738773041091,-500.0,9.929e-05,2]
[351741957,1738773041100,-500.0,9.929e-05,2]
[351741959,1738773041111,-500.0,9.929e-05,2]
[351741961,1738773041120,-500.0,9.929e-05,2]
[351741963,1738773041130,-500.0,9.929e-05,2]
[351741965,1738773041139,-500.0,9.929e-05,2]
[351741967,1738773041150,-500.0,9.929e-05,2]
[351741969,1738773041159,-500.0,9.929e-05,2]
[351741971,1738773041169,-500.0,9.929e-05,2]
[351741973,1738773041179,-500.0,9.929e-05,2]
[351741975,1738773041188,-500.0,9.929e-05,2]
[351741977,1738773041198,-500.0,9.929e-05,2]
[351741979,1738773041207,-500.0,9.929e-05,2]
[351741981,1738773041216,-500.0,9.929e-05,2]
[351741983,1738773041225,-500.0,9.929e-05,2]
[351741985,1738773041234,-500.0,9.929e-05,2]
[351741987,1738773041244,-500.0,9.929e-05,2]
[351741989,1738773041253,-500.0,9.929e-05,2]
[351741991,1738773041264,-500.0,9.929e-05,2]
[351741993,1738773041273,-500.0,9.929e-05,2]
[351741995,1738773041282,-500.0,9.929e-05,2]
[351741997,1738773041293,-500.0,9.929e-05,2]
[351741999,1738773041302,-500.0,9.929e-05,2]
[351742001,1738773041311,-500.0,9.929e-05,2]
[351742003,1738773041321,-500.0,9.929e-05,2]
[351742005,1738773041330,-500.0,9.929e-05,2]
[351742007,1738773041339,-500.0,9.929e-05,2]
[351742009,1738773041348,-500.0,9.929e-05,2]
[351742011,1738773041358,-500.0,9.929e-05,2]
[351742013,1738773041367,-500.0,9.929e-05,2]
[351742015,1738773041377,-500.0,9.929e-05,2]
[351742017,1738773041388,-500.0,9.929e-05,2]
[351742019,1738773041397,-500.0,9.929e-05,2]
[351742021,1738773041407,-500.0,9.929e-05,2]
[351742024,1738773041418,-591.74,9.929e-05,2]
[351742026,1738773041428,-500.0,9.929e-05,2]
[351742027,1738773041438,-205.97,9.929e-05,2]
[351742030,1738773041448,-500.0,9.929e-05,2]
[351742032,1738773041458,-500.0,9.929e-05,2]
[351742034,1738773041468,-500.0,9.929e-05,2]
[351742035,1738773041478,-500.0,9.929e-05,2]
[351742037,1738773041487,-558.71,9.929e-05,2]
[351742039,1738773041497,-500.0,9.929e-05,2]
[351742041,1738773041509,-500.0,9.929e-05,2]
[351742043,1738773041519,-500.0,9.929e-05,2]
[351742045,1738773041529,-500.0,9.929e-05,2]
[351742047,1738773041539,-501.3207919,9.929e-05,2]
[351742050,1738773041548,-507.65434859,9.929e-05,2]
[351742051,1738773041558,-500.0,9.929e-05,2]
[351742053,1738773041568,-500.0,9.929e-05,2]
[351742056,1738773041578,-500.0,9.929e-05,2]
[351742057,1738773041588,-1118.0,9.929e-05,2]
[351742060,1738773041599,-500.0,9.929e-05,2]
[351742061,1738773041608,-500.0,9.929e-05,2]
[351742063,1738773041618,-500.0,9.929e-05,2]
[351742065,1738773041628,-500.0,9.929e-05,2]
[351742067,1738773041639,-500.0,9.929e-05,2]
[351742069,1738773041648,-500.0,9.929e-05,2]
[351742071,1738773041658,-500.0,9.929e-05,2]
[351742073,1738773041668,-500.0,9.929e-05,2]
[351742075,1738773041679,-500.0,9.929e-05,2]
[351742077,1738773041689,-500.0,9.929e-05,2]
[351742079,1738773041700,-500.0,9.929e-05,2]
[351742081,1738773041711,-500.0,9.929e-05,2]
[351742083,1738773041723,-500.0,9.929e-05,2]
[351742085,1738773041734,-500.0,9.929e-05,2]
[351742088,1738773041745,-500.0,9.929e-05,2]
[351742090,1738773041755,-500.0,9.929e-05,2]
[351742091,1738773041770,-500.0,9.929e-05,2]
[351742093,1738773041780,-500.0,9.929e-05,2]
[351742096,1738773041791,-500.0,9.929e-05,2]
[351742098,1738773041807,-500.0,9.929e-05,2]
[351742100,1738773041818,-500.0,9.929e-05,2]
[351742102,1738773041828,-500.0,9.929e-05,2]
[351742104,1738773041840,-500.0,9.929e-05,2]
[351742106,1738773041850,-500.0,9.929e-05,2]
[351742108,1738773041861,-500.0,9.929e-05,2]
[351742110,1738773041871,-500.0,9.929e-05,2]
[351742112,1738773041883,-500.0,9.929e-05,2]
[351742114,1738773041894,-500.0,9.929e-05,2]
[351742116,1738773041905,-549.55,9.929e-05,2]
[351742118,1738773041914,-275.47,9.929e-05,2]
[351742120,1738773041924,-608.31419854,9.929e-05,2]
[351742122,1738773041934,-500.0,9.929e-05,2]
[351742124,1738773041945,-500.0,9.929e-05,2]
[351742127,1738773041955,-500.0,9.929e-05,2]
[351742128,1738773041966,-500.0,9.929e-05,2]
[351742130,1738773041975,-500.0,9.929e-05,2]
[351742132,1738773041985,-446.2265331,9.93e-05,2]
[351742134,1738773041995,-500.0,9.93e-05,2]
[351742136,1738773042005,-500.0,9.93e-05,2]
[351742138,1738773042017,-500.0,9.93e-05,2]
[351742140,1738773042027,-500.0,9.93e-05,2]
[351742143,1738773042038,-500.0,9.93e-05,2]
[351742145,1738773042048,-500.0,9.93e-05,2]
[351742147,1738773042057,-500.0,9.93e-05,2]
[351742149,1738773042067,-500.0,9.93e-05,2]
[351742150,1738773042076,-500.0,9.93e-05,2]
[351742152,1738773042086,-500.0,9.93e-05,2]
[351742155,1738773042097,-500.0,9.93e-05,2]
[351742156,1738773042106,-500.0,9.93e-05,2]
[351742159,1738773042116,-500.0,9.93e-05,2]
[351742161,1738773042126,-500.0,9.93e-05,2]
[351742163,1738773042135,-500.0,9.93e-05,2]
[351742165,1738773042145,-500.0,9.93e-05,2]
[351742167,1738773042155,-500.0,9.93e-05,2]
[351742169,1738773042164,-500.0,9.93e-05,2]
[351742171,1738773042174,-595.42,9.93e-05,2]
[351742173,1738773042184,-500.0,9.93e-05,2]
[351742175,1738773042193,-500.0,9.93e-05,2]
[351742177,1738773042203,-500.0,9.93e-05,2]
[351742179,1738773042214,-500.0,9.93e-05,2]
[351742181,1738773042222,-500.0,9.93e-05,2]
[351742183,1738773042233,-500.0,9.93e-05,2]
[351742185,1738773042241,-500.0,9.93e-05,2]
[351742187,1738773042251,-500.0,9.93e-05,2]
[351742189,1738773042264,-500.0,9.93e-05,2]
[351742191,1738773042274,-500.0,9.93e-05,2]
[351742193,1738773042285,-500.0,9.93e-05,2]
[351742195,1738773042295,-500.0,9.93e-05,2]
[351742197,1738773042304,-460.78123613,9.93e-05,2]
[351742199,1738773042314,-500.0,9.93e-05,2]
[351742201,1738773042324,-500.0,9.93e-05,2]
[351742203,1738773042333,-522.0200228,9.93e-05,2]
[351742205,1738773042343,-457.58764944,9.93e-05,2]
[351742207,1738773042353,-500.0,9.93e-05,2]
[351742209,1738773042364,-500.0,9.93e-05,2]
[351742210,1738773042373,-500.0,9.93e-05,2]
[351742211,1738773042384,-500.0,9.93e-05,2]
[351742212,1738773042394,-500.0,9.93e-05,2]
[351742213,1738773042404,-500.0,9.93e-05,2]
[351742214,1738773042414,-71.99462061,9.93e-05,2]
[351742215,1738773042432,-428.00537939,9.93e-05,2]
[351742216,1738773042443,-500.0,9.93e-05,2]
[351742217,1738773042453,-59.99462061,9.93e-05,2]
[351742218,1738773042483,-452.32910566,9.93e-05,2]
[351742221,1738773042511,-2.07627373,9.93e-05,2]
[351742223,1738773042521,-500.0,9.93e-05,2]
[351742225,1738773042530,-500.0,9.93e-05,2]
[351742227,1738773042540,-500.0,9.93e-05,2]
[351742229,1738773042550,-500.0,9.93e-05,2]
[351742231,1738773042559,-309.43297212,9.93e-05,2]
[351742233,1738773042569,-500.0,9.93e-05,2]
[351742235,1738773042578,-500.0,9.93e-05,2]
[351742237,1738773042589,-500.0,9.93e-05,2]
[351742239,1738773042598,-500.0,9.93e-05,2]
[351742241,1738773042609,-606.50237844,9.93e-05,2]
[351742243,1738773042618,-500.0,9.93e-05,2]
[351742245,1738773042628,-500.0,9.93e-05,2]
[351742247,1738773042638,-500.0,9.93e-05,2]
[351742249,1738773042647,-500.0,9.93e-05,2]
[351742251,1738773042658,-500.0,9.93e-05,2]
[351742253,1738773042667,-500.0,9.93e-05,2]
[351742255,1738773042677,-500.0,9.93e-05,2]
[351742257,1738773042686,-805.26724645,9.945e-05,2]
[351742259,1738773042696,-805.26724645,9.968e-05,2]
[351742261,1738773042708,-805.26724645,9.988e-05,2]
[351742263,1738773042721,-805.26724645,9.997e-05,2]
[351742264,1738773042731,-17585.76310667,0.0001,2]
[351742267,1738773042744,-18479.81519242,0.0001,2]
[351742269,1738773042760,-17296.56486414,0.0001,2]
[351742278,1738773042847,-512.87640715,0.0001,2]
[351742281,1738773042860,-4685.73457358,0.0001,2]
[351742283,1738773042872,-2757.921871,0.0001,2]
[351742285,1738773042884,-896.82497611,0.0001,2]
[351742287,1738773042895,-383.57266039,0.0001,2]
[351742289,1738773042908,-5620.00299894,0.0001,2]
[351742292,1738773042920,-1278.84352365,0.0001,2]
[351742295,1738773042939,-999.29879992,0.0001,2]
[351742344,1738773043399,-83997.23825,0.0001,2]
[351742347,1738773043413,-1177.86146382,0.0001,2]
[351742349,1738773043424,-1631.14693322,0.0001,2]
[351742351,1738773043436,-4381.25527597,0.0001,2]
[351742353,1738773043447,-586.21833284,0.0001,2]
[351742355,1738773043458,-489.02217424,0.0001,2]
[351742357,1738773043470,-2000.16845197,0.0001,2]
[351742359,1738773043480,-792.04723765,0.0001,2]
[351742362,1738773043493,-7124.98741343,0.0001,2]
[351742364,1738773043507,-962.70634916,0.0001,2]
[351742366,1738773043519,-19492.8,0.0001,2]
[351742368,1738773043531,-296.9,0.0001,2]
[351742371,1738773043543,-1353.23790222,0.0001,2]
[351742373,1738773043555,-274.03796365,0.0001,2]
[351742375,1738773043568,-10609.51983859,0.0001,2]
[351742377,1738773043578,-79840.07805881,0.0001,2]
[351742379,1738773043590,-408.62398598,0.00010065,2]
[351742381,1738773043603,-500.0,0.00010065,2]
[351742384,1738773043614,-500.0,0.00010065,2]
[351742385,1738773043624,-500.0,0.00010065,2]
[351742388,1738773043635,-500.0,0.00010065,2]
[351742390,1738773043646,-500.0,0.00010065,2]
[351742392,1738773043656,-500.0,0.00010065,2]
[351742393,1738773043667,-500.0,0.00010065,2]
[351742396,1738773043678,-500.0,0.00010065,2]
[351742398,1738773043688,-500.0,0.00010065,2]
[351742400,1738773043699,-500.0,0.00010065,2]
[351742402,1738773043712,-240.27,0.00010065,2]
[351742404,1738773043725,-500.0,0.00010065,2]
[351742406,1738773043737,-500.0,0.00010065,2]
[351742408,1738773043749,-502.78782896,0.00010065,2]
[351742410,1738773043763,-260.51634448,0.00010065,2]
[351742412,1738773043774,-500.0,0.00010065,2]
[351742413,1738773043785,-500.0,0.00010065,2]
[351742415,1738773043796,-500.0,0.00010065,2]
[351742418,1738773043808,-500.0,0.00010065,2]
[351742420,1738773043819,-500.0,0.00010065,2]
[351742421,1738773043829,-500.0,0.00010065,2]
[351742423,1738773043840,-500.0,0.00010065,2]
[351742426,1738773043850,-500.0,0.00010065,2]
[351742428,1738773043860,-500.0,0.00010065,2]
[351742430,1738773043870,-177.66033429,0.00010065,2]
[351742432,1738773043881,-500.0,0.00010065,2]
[351742434,1738773043890,-373.1,0.00010065,2]
[351742435,1738773043901,-500.0,0.00010065,2]
[351742437,1738773043912,-500.0,0.00010065,2]
[351742439,1738773043922,-500.0,0.00010065,2]
[351742441,1738773043931,-500.0,0.00010065,2]
[351742444,1738773043941,-500.0,0.00010065,2]
[351742446,1738773043951,-518.17,0.00010065,2]
[351742448,1738773043960,-500.0,0.00010065,2]
[351742450,1738773043970,-500.0,0.00010065,2]
[351742452,1738773043980,-285.28356143,0.00010065,2]
[351742454,1738773043989,-500.0,0.00010065,2]
[351742456,1738773043999,-374.552,0.00010065,2]
[351742457,1738773044011,-500.0,0.00010066,2]
[351742460,1738773044021,-500.0,0.00010066,2]
[351742462,1738773044030,-500.0,0.00010066,2]
[351742464,1738773044042,-552.72,0.00010066,2]
[351742466,1738773044053,-577.5,0.00010066,2]
[351742468,1738773044063,-269.05,0.00010066,2]
[351742470,1738773044073,-571.24,0.00010066,2]
[351742472,1738773044083,-382.3,0.00010066,2]
[351742474,1738773044093,-438.4,0.00010066,2]
[351742476,1738773044103,-500.0,0.00010066,2]
[351742478,1738773044113,-379.16,0.00010066,2]
[351742479,1738773044123,-168.97,0.00010066,2]
[351742482,1738773044133,-186.66,0.00010066,2]
[351742484,1738773044143,-192.58008532,0.00010066,2]
[351742486,1738773044154,-387.15,0.00010066,2]
[351742488,1738773044165,-500.0,0.00010066,2]
[351742490,1738773044175,-500.0,0.00010066,2]
[351742492,1738773044185,-385.73,0.00010066,2]
[351742494,1738773044195,-500.0,0.00010066,2]
[351742496,1738773044205,-500.0,0.00010066,2]
[351742498,1738773044215,-500.0,0.00010066,2]
[351742500,1738773044225,-500.0,0.00010066,2]
[351742502,1738773044235,-211.6,0.00010066,2]
[351742504,1738773044244,-500.0,0.00010066,2]
[351742506,1738773044253,-424.27,0.00010066,2]
[351742508,1738773044264,-500.0,0.00010066,2]
[351742510,1738773044273,-500.0,0.00010066,2]
[351742512,1738773044283,-500.0,0.00010066,2]
[351742514,1738773044293,-500.0,0.00010066,2]
[351742516,1738773044303,-500.0,0.00010066,2]
[351742518,1738773044313,-500.0,0.00010066,2]
[351742519,1738773044322,-500.0,0.00010066,2]
[351742521,1738773044332,-363.44,0.00010066,2]
[351742523,1738773044341,-500.0,0.00010066,2]
[351742525,1738773044351,-500.0,0.00010066,2]
[351742527,1738773044360,-500.0,0.00010066,2]
[351742529,1738773044370,-500.0,0.00010066,2]
[351742531,1738773044380,-500.0,0.00010066,2]
[351742533,1738773044391,-413.29,0.00010066,2]
[351742535,1738773044400,-500.0,0.00010066,2]
[351742537,1738773044411,-500.0,0.00010066,2]
[351742540,1738773044421,-380.73,0.00010066,2]
[351742542,1738773044431,-500.0,0.00010066,2]
[351742544,1738773044441,-500.0,0.00010066,2]
[351742546,1738773044450,-500.0,0.00010066,2]
[351742548,1738773044460,-455.15,0.00010066,2]
[351742549,1738773044469,-500.0,0.00010066,2]
[351742552,1738773044480,-500.0,0.00010066,2]
[351742553,1738773044489,-500.0,0.00010066,2]
[351742555,1738773044499,-500.0,0.00010066,2]
[351742558,1738773044513,-500.0,0.00010066,2]
[351742560,1738773044525,-500.0,0.00010066,2]
[351742562,1738773044536,-500.0,0.00010066,2]
[351742564,1738773044546,-500.0,0.00010066,2]
[351742566,1738773044556,-599.28,0.00010066,2]
[351742568,1738773044566,-500.0,0.00010066,2]
[351742570,1738773044576,-500.0,0.00010066,2]
[351742572,1738773044586,-500.0,0.00010066,2]
[351742574,1738773044596,-500.0,0.00010066,2]
[351742576,1738773044606,-488.06,0.00010066,2]
[351742578,1738773044616,-1118.0,0.00010066,2]
[351742580,1738773044626,-501.68,0.00010066,2]
[351742582,1738773044636,-404.92,0.00010066,2]
[351742585,1738773044648,-500.0,0.00010066,2]
[351742587,1738773044658,-500.0,0.00010066,2]
[351742588,1738773044668,-500.0,0.00010066,2]
[351742591,1738773044679,-451.91,0.00010066,2]
[351742593,1738773044689,-500.0,0.00010066,2]
[351742595,1738773044700,-500.0,0.00010066,2]
[351742597,1738773044713,-500.0,0.00010066,2]
[351742599,1738773044724,-304.13,0.00010066,2]
[351742601,1738773044734,-171.86,0.00010066,2]
[351742603,1738773044744,-500.0,0.00010066,2]
[351742605,1738773044755,-493.39,0.00010066,2]
[351742607,1738773044767,-374.15,0.00010066,2]
[351742609,1738773044778,-500.0,0.00010066,2]
[351742611,1738773044790,-500.0,0.00010066,2]
[351742613,1738773044801,-323.08,0.00010066,2]
[351742615,1738773044814,-500.0,0.00010066,2]
[351742617,1738773044825,-538.69,0.00010066,2]
[351742619,1738773044835,-188.77,0.00010066,2]
[351742621,1738773044845,-294.28,0.00010066,2]
[351742623,1738773044856,-500.0,0.00010066,2]
[351742625,1738773044866,-495.19178561,0.00010066,2]
[351742626,1738773044876,-500.0,0.00010066,2]
[351742627,1738773044886,-500.0,0.00010066,2]
[351742628,1738773044896,-500.0,0.00010066,2]
[351742629,1738773044906,-500.0,0.00010066,2]
[351742630,1738773044916,-500.0,0.00010066,2]
[351742631,1738773044926,-500.0,0.00010066,2]
[351742632,1738773044938,-479.21,0.00010067,2]
[351742633,1738773044948,-500.0,0.00010067,2]
[351742634,1738773044958,-500.0,0.00010067,2]
[351742635,1738773044968,-500.0,0.00010067,2]
[351742636,1738773044979,-500.0,0.00010067,2]
[351742637,1738773044989,-500.0,0.00010067,2]
[351742639,1738773044999,-375.31,0.00010068,2]
[351742641,1738773045011,-893.01,0.00010137,2]
[351742643,1738773045022,-500.0,0.00010164,2]
[351742645,1738773045033,-500.0,0.00010202,2]
[351742647,1738773045044,-520.57,0.00010202,2]
[351742649,1738773045054,-500.0,0.00010202,2]
[351742651,1738773045064,-500.0,0.00010202,2]
[351742653,1738773045074,-500.0,0.00010202,2]
[351742655,1738773045083,-500.0,0.00010202,2]
[351742657,1738773045094,-500.0,0.00010202,2]
[351742659,1738773045104,-500.0,0.00010202,2]
[351742661,1738773045114,-310.49,0.00010202,2]
[351742663,1738773045124,-250.16,0.00010202,2]
[351742665,1738773045133,-500.0,0.00010202,2]
[351742666,1738773045143,-500.0,0.00010202,2]
[351742668,1738773045153,-500.0,0.00010202,2]
[351742671,1738773045163,-500.0,0.00010202,2]
[351742673,1738773045174,-500.0,0.00010202,2]
[351742675,1738773045185,-500.0,0.00010202,2]
[351742676,1738773045194,-500.0,0.00010202,2]
[351742678,1738773045204,-500.0,0.00010202,2]
[351742680,1738773045214,-500.0,0.00010202,2]
[351742682,1738773045226,-500.0,0.00010202,2]
[351742684,1738773045236,-500.0,0.00010202,2]
[351742686,1738773045246,-500.0,0.00010202,2]
[351742688,1738773045253,-323.67,0.00010202,2]
[351742690,1738773045264,-303.42,0.00010202,2]
[351742692,1738773045273,-500.0,0.00010202,2]
[351742694,1738773045283,-352.67,0.00010202,2]
[351742696,1738773045292,-279.96,0.00010203,2]
[351742698,1738773045301,-382.97,0.00010203,2]
[351742700,1738773045308,-274.92,0.00010203,2]
[351742702,1738773045316,-500.0,0.00010203,2]
[351742704,1738773045326,-500.0,0.00010203,2]
[351742706,1738773045336,-500.0,0.00010203,2]
[351742708,1738773045345,-175.96,0.00010203,2]
[351742710,1738773045355,-500.0,0.00010203,2]
[351742712,1738773045364,-500.0,0.00010203,2]
[351742714,1738773045374,-500.0,0.00010203,2]
[351742716,1738773045383,-500.0,0.00010203,2]
[351742717,1738773045392,-500.0,0.00010203,2]
[351742719,1738773045402,-500.0,0.00010203,2]
[351742721,1738773045412,-500.0,0.00010203,2]
[351742724,1738773045429,-351.8,0.00010203,2]
[351742726,1738773045439,-500.0,0.00010203,2]
[351742728,1738773045449,-500.0,0.00010203,2]
[351742730,1738773045459,-500.0,0.00010203,2]
[351742732,1738773045469,-386.86,0.00010203,2]
[351742734,1738773045479,-500.0,0.00010203,2]
[351742736,1738773045488,-201.12,0.00010203,2]
[351742738,1738773045499,-500.0,0.00010203,2]
[351742740,1738773045508,-500.0,0.00010203,2]
[351742742,1738773045521,-500.0,0.00010203,2]
[351742744,1738773045531,-500.0,0.00010203,2]
[351742746,1738773045540,-500.0,0.00010203,2]
[351742748,1738773045551,-529.93,0.00010203,2]
[351742750,1738773045560,-523.87,0.00010203,2]
[351742752,1738773045570,-500.0,0.00010203,2]
[351742754,1738773045579,-369.02,0.00010203,2]
[351742756,1738773045589,-416.24,0.00010203,2]
[351742758,1738773045598,-189.33,0.00010203,2]
[351742760,1738773045608,-500.0,0.00010203,2]
[351742762,1738773045618,-222.4,0.00010203,2]
[351742764,1738773045628,-252.97,0.00010203,2]
[351742766,1738773045638,-210.84,0.00010203,2]
[351742768,1738773045649,-500.0,0.00010203,2]
[351742770,1738773045658,-500.0,0.00010203,2]
[351742772,1738773045668,-504.34,0.00010203,2]
[351742774,1738773045678,-500.0,0.00010203,2]
[351742776,1738773045687,-1118.0,0.00010203,2]
[351742778,1738773045696,-462.09,0.00010203,2]
[351742780,1738773045707,-500.0,0.00010203,2]
[351742782,1738773045716,-500.0,0.00010203,2]
[351742788,1738773045775,-500.0,0.00010203,2]
[351742790,1738773045786,-500.0,0.00010203,2]
[351742792,1738773045799,-264.11,0.00010203,2]
[351742794,1738773045809,-500.0,0.00010203,2]
[351742796,1738773045819,-500.0,0.00010203,2]
[351742798,1738773045829,-500.0,0.00010203,2]
[351742800,1738773045838,-500.0,0.00010203,2]
[351742802,1738773045847,-500.0,0.00010203,2]
[351742804,1738773045857,-240.5,0.00010203,2]
[351742806,1738773045867,-609.92,0.00010203,2]
[351742808,1738773045876,-367.22,0.00010203,2]
[351742810,1738773045885,-384.9,0.00010203,2]
[351742812,1738773045894,-462.1,0.00010203,2]
[351742814,1738773045905,-500.0,0.00010203,2]
[351742816,1738773045914,-338.11,0.00010204,2]
[351742818,1738773045923,-349.44,0.00010204,2]
[351742820,1738773045933,-500.0,0.00010204,2]
[351742822,1738773045943,-1484.0,0.00010294,2]
[351742824,1738773045952,-151.0,0.00010294,2]
[351742826,1738773045961,-500.0,0.00010339,2]
[351742828,1738773045971,-500.0,0.00010339,2]
[351742830,1738773045979,-500.0,0.00010339,2]
[351742832,1738773045988,-500.0,0.00010339,2]
[351742834,1738773045998,-500.0,0.00010339,2]
[351742836,1738773046007,-500.0,0.00010339,2]
[351742838,1738773046017,-500.0,0.00010339,2]
[351742839,1738773046027,-500.0,0.00010339,2]
[351742842,1738773046038,-500.0,0.00010339,2]
[351742844,1738773046047,-500.0,0.00010339,2]
[351742846,1738773046056,-192.83,0.00010339,2]
[351742847,1738773046066,-500.0,0.00010339,2]
[351742850,1738773046076,-500.0,0.00010339,2]
[351742852,1738773046086,-500.0,0.00010339,2]
[351742853,1738773046095,-500.0,0.00010339,2]
[351742855,1738773046104,-500.0,0.00010339,2]
[351742857,1738773046113,-500.0,0.00010339,2]
[351742859,1738773046123,-307.18,0.00010339,2]
[351742861,1738773046133,-500.0,0.00010339,2]
[351742863,1738773046143,-500.0,0.00010339,2]
[351742865,1738773046153,-319.02658407,0.0001034,2]
[351742867,1738773046162,-500.0,0.0001034,2]
[351742870,1738773046172,-500.0,0.0001034,2]
[351742872,1738773046181,-500.0,0.0001034,2]
[351742874,1738773046191,-500.0,0.0001034,2]
[351742876,1738773046202,-500.0,0.0001034,2]
[351742878,1738773046211,-500.0,0.0001034,2]
[351742881,1738773046221,-500.0,0.0001034,2]
[351742883,1738773046232,-500.0,0.0001034,2]
[351742884,1738773046241,-194.24,0.0001034,2]
[351742886,1738773046251,-500.0,0.0001034,2]
[351742888,1738773046261,-296.87,0.0001034,2]
[351742891,1738773046271,-500.0,0.0001034,2]
[351742895,1738773046281,-500.0,0.0001034,2]
[351742897,1738773046291,-500.0,0.0001034,2]
[351742900,1738773046301,-500.0,0.0001034,2]
[351742902,1738773046311,-500.0,0.0001034,2]
[351742903,1738773046320,-500.0,0.0001034,2]
[351742906,1738773046330,-500.0,0.0001034,2]
[351742907,1738773046340,-500.0,0.0001034,2]
[351742910,1738773046351,-556.44,0.0001034,2]
[351742911,1738773046360,-500.0,0.0001034,2]
[351742914,1738773046370,-500.0,0.0001034,2]
[351742915,1738773046380,-500.0,0.0001034,2]
[351742918,1738773046390,-1118.0,0.0001034,2]
[351742920,1738773046400,-500.0,0.0001034,2]
[351742922,1738773046411,-500.0,0.0001034,2]
[351742924,1738773046420,-610.60166655,0.0001034,2]
[351742926,1738773046431,-500.0,0.0001034,2]
[351742928,1738773046442,-402.55,0.0001034,2]
[351742930,1738773046452,-500.0,0.0001034,2]
[351742931,1738773046461,-500.0,0.0001034,2]
[351742934,1738773046471,-500.0,0.0001034,2]
[351742936,1738773046481,-454.71,0.0001034,2]
[351742937,1738773046491,-220.38,0.0001034,2]
[351742939,1738773046501,-500.0,0.00010341,2]